lending/lending_fUSD_20260310
["ID","MTS","AMOUNT","RATE_DAILY","PERIOD"]
[408069012,1773104956495,-300.0,0.00014999,2]
[408069017,1773104985911,-500.0,0.00015,30]
[408069018,1773104985936,-554.13305923,0.00015,30]
[408069019,1773104985962,-966.6343478,0.00015,30]
[408069020,1773104985986,-500.0,0.00015,30]
[408069021,1773104986012,-500.0,0.00015,30]
[408069022,1773104986038,-500.0,0.00015,30]
[408069023,1773104986063,-500.0,0.00015,30]
[408069024,1773104986088,-500.0,0.00015,30]
[408069034,1773105032227,-1474.70654326,0.00015607,2]
[408069035,1773105032244,-245.78442388,0.00015748,2]
[408069036,1773105032260,-245.78442388,0.00015903,2]
[408069037,1773105032276,-245.78442388,0.00016059,2]
[408069038,1773105032292,-300.0,0.00016148,2]
[408069039,1773105032306,-1102.30943848,0.00016148,2]
[408069042,1773105032331,-97.69056152,0.00016148,2]
[408069044,1773105032345,-150.0,0.00016149,7]
[408069047,1773105032360,-194.54128,0.00016149,7]
[408069049,1773105032376,-239.08256,0.00016149,7]
[408069052,1773105032391,-283.62384,0.00016149,7]
[408069055,1773105032406,-328.16512,0.00016149,7]
[408069057,1773105032420,-372.7064,0.00016149,7]
[408069059,1773105032435,-417.24768,0.00016149,7]
[408069061,1773105032450,-461.78896,0.00016149,7]
[408069062,1773105032465,-506.33024,0.00016149,7]
[408069064,1773105032480,-550.87152,0.00016149,7]
[408069066,1773105032495,-1000.0,0.000165,3]
[408069068,1773105032511,-1500.0,0.00016663,2]
[408069069,1773105032525,-2000.0,0.00016829,2]
[408069070,1773105032540,-3315.22726745,0.00016936,2]
[408069071,1773105032554,-190.76895874,0.00016999,2]
[408069073,1773105032568,-500.0,0.00016999,2]
[408069074,1773105032583,-176.9282053,0.00016999,2]
[408069075,1773105032598,-55180.38884339,0.00017,2]
[408069081,1773105038250,-119765.2262833,0.00017,2]
[408069082,1773105038260,-503.0,0.00017,2]
[408069083,1773105038269,-150.0,0.00017036,2]
[408069084,1773105038279,-1068.82053011,0.00017153,2]
[408069085,1773105038288,-2500.0,0.00017168,2]
[408069086,1773105038298,-2500.0,0.00017168,2]
[408069087,1773105038312,-2500.0,0.00017168,2]
[408069088,1773105038322,-2500.0,0.00017168,2]
[408069089,1773105038331,-2500.0,0.00017168,2]
[408069090,1773105038341,-2000.0,0.00017257,2]
[408069091,1773105038351,-3315.22726745,0.00017265,2]
[408069092,1773105038360,-1879.48,0.00017389,2]
[408069093,1773105038370,-500.0,0.00017509,2]
[408069094,1773105038379,-3315.22726745,0.00017595,2]
[408069095,1773105038389,-420.0,0.00017653,2]
[408069096,1773105038399,-186.65,0.0001767,2]
[408069097,1773105038408,-1200.0,0.00017741,2]
[408069098,1773105038418,-1879.48,0.00017823,2]
[408069099,1773105038428,-166.66,0.00017856,2]
[408069100,1773105038437,-3315.22726745,0.00017924,2]
[408069101,1773105038447,-13454.49561843,0.00018,5]
[408069102,1773105038456,-465.22146743,0.00018,2]
[408069103,1773105038466,-1197.5510327,0.00018,2]
[408069104,1773105038475,-1032.89020362,0.00018,2]
[408069105,1773105038485,-500.0,0.00018045,2]
[408069106,1773105038494,-1787.23818985,0.000181,2]
[408069107,1773105038504,-3470.11308297,0.0001821,2]
[408069108,1773105038513,-286.12,0.00018216,2]
[408069109,1773105038523,-166.66,0.00018232,2]
[408069110,1773105038532,-3315.22726745,0.00018253,2]
[408069112,1773105038543,-1879.48,0.00018258,2]
[408069113,1773105038552,-888.16,0.00018269,2]
[408069114,1773105038561,-702.63,0.0001828,2]
[408069115,1773105038571,-500.0,0.00018356,7]
[408069116,1773105038580,-500.0,0.00018356,7]
[408069117,1773105038590,-500.0,0.00018356,7]
[408069119,1773105038600,-166.66,0.00018392,2]
[408069120,1773105038609,-445.4,0.00018411,2]
[408069121,1773105038620,-11347.69688987,0.00018508,2]
[408069122,1773105038629,-1172.94062482,0.00018508,2]
[408069123,1773105038640,-3315.22726745,0.00018583,2]
[408069124,1773105038649,-149564.7457,0.00018607,2]
[408069125,1773105038658,-166.66,0.00018608,2]
[408069126,1773105038668,-3083.6,0.00018658,2]
[408069127,1773105038677,-1008.07,0.00018662,2]
[408069128,1773105038688,-11347.69688987,0.00018663,2]
[408069129,1773105038698,-1879.48,0.00018693,2]
[408069131,1773105038707,-500.0,0.00018706,2]
[408069132,1773105038716,-500.0,0.00018706,2]
[408069133,1773105038726,-1172.94062482,0.00018707,2]
[408069134,1773105038736,-1000.0,0.000188,3]
[408069135,1773105038745,-1000.0,0.000188,4]
[408069136,1773105038755,-11347.69688987,0.00018817,2]
[408069137,1773105038765,-1172.94062482,0.00018906,2]
[408069138,1773105038774,-3315.22726745,0.00018912,2]
[408069139,1773105038784,-2000.0,0.00018933,2]
[408069140,1773105038793,-1000.0,0.00018968,2]
[408069141,1773105038804,-174.61919141,0.00018968,2]
[408069142,1773105038813,-184.51044822,0.00018968,2]
[408069143,1773105038823,-11347.69688987,0.00018972,2]
[408069144,1773105038833,-166.66,0.00018984,2]
[408069145,1773105038843,-2567.11739689,0.00019,2]
[408069146,1773105038857,-1100.0,0.00019,6]
[408069147,1773105038869,-163.0,0.000191,2]
[408069148,1773105038878,-1227.17614096,0.000191,2]
[408069149,1773105038888,-2200.0,0.000191,6]
[408069150,1773105038897,-1172.94062482,0.00019105,2]
[408069151,1773105038907,-1525.6,0.00019106,2]
[408069152,1773105038916,-2603.9,0.00019106,2]
[408069153,1773105038926,-11347.69688987,0.00019127,2]
[408069154,1773105038937,-1879.48,0.00019127,2]
[408069155,1773105038946,-166.66,0.00019151,2]
[408069156,1773105038959,-787.0,0.00019178,2]
[408069157,1773105038969,-1000.0,0.00019178,2]
[408069158,1773105038980,-2000.0,0.000192,2]
[408069159,1773105038989,-3300.0,0.000192,7]
[408069160,1773105038998,-1000.0,0.000192,5]
[408069161,1773105039008,-3315.22726745,0.00019241,2]
[408069162,1773105039020,-469.49736645,0.00019273,2]
[408069163,1773105039030,-11347.69688987,0.00019281,2]
[408069164,1773105039040,-587.0,0.00019297,2]
[408069165,1773105039050,-172.87392778,0.000193,7]
[408069166,1773105039060,-4400.0,0.000193,7]
[408069167,1773105039070,-1172.94062482,0.00019303,2]
[408069168,1773105039080,-500.0,0.00019313,2]
[408069169,1773105039090,-2000.0,0.00019313,2]
[408069170,1773105039099,-166.66,0.00019359,2]
[408069171,1773105039110,-4380.447001,0.00019379,7]
[408069172,1773105039120,-922.0,0.00019384,2]
[408069173,1773105039130,-1213.0,0.00019384,2]
[408069174,1773105039140,-5500.0,0.000194,7]
[408069175,1773105039149,-503.0,0.00019423,4]
[408069176,1773105039158,-161.62513775,0.00019425,2]
[408069177,1773105039168,-161.62513775,0.00019425,2]
[408069178,1773105039177,-160.90423195,0.00019425,2]
[408069179,1773105039187,-161.62513775,0.00019425,2]
[408069180,1773105039196,-161.62513775,0.00019425,2]
[408069181,1773105039206,-160.90423195,0.00019425,2]
[408069182,1773105039216,-161.62513775,0.00019425,2]
[408069183,1773105039226,-11347.69688987,0.00019436,2]
[408069184,1773105039235,-500.0,0.00019452,7]
[408069185,1773105039245,-500.0,0.00019452,7]
[408069186,1773105039254,-787.0,0.00019452,2]
[408069187,1773105039264,-1000.0,0.00019452,2]
[408069188,1773105039273,-5994.0,0.00019468,2]
[408069189,1773105039283,-2461.0,0.00019468,2]
[408069190,1773105039292,-41474.80847194,0.000195,3]
[408069191,1773105039324,-25538.51300551,0.000195,3]
[408069192,1773105039334,-1100.0,0.000195,7]
[408069193,1773105039343,-1172.94062482,0.00019502,2]
[408069194,1773105039353,-500.0,0.00019503,2]
[408069195,1773105039362,-500.0,0.00019503,2]
[408069196,1773105039372,-150.0,0.00019503,2]
[408069197,1773105039381,-150.0,0.00019503,2]
[408069198,1773105039390,-500.0,0.00019503,2]
[408069199,1773105039399,-534.0,0.00019503,2]
[408069200,1773105039411,-150.0,0.00019503,2]
[408069201,1773105039421,-500.0,0.00019503,2]
[408069202,1773105039431,-1000.0,0.00019516,2]
[408069203,1773105039440,-181.08010149,0.00019516,2]
[408069204,1773105039451,-168.0,0.00019552,2]
[408069205,1773105039461,-500.0,0.00019558,2]
[408069206,1773105039470,-500.0,0.00019558,2]
[408069207,1773105039480,-250.0,0.00019558,2]
[408069208,1773105039490,-150.0,0.00019558,2]
[408069209,1773105039500,-500.0,0.00019558,2]
[408069210,1773105039510,-534.0,0.00019558,2]
[408069211,1773105039521,-150.0,0.00019558,2]
[408069212,1773105039531,-500.0,0.00019558,2]
[408069213,1773105039541,-3315.22726745,0.00019571,2]
[408069214,1773105039550,-11347.69688987,0.00019591,2]
[408069215,1773105039559,-1100.0,0.000196,7]
[408069216,1773105039569,-150.0,0.00019612,2]
[408069217,1773105039578,-200.0,0.00019613,2]
[408069218,1773105039590,-500.0,0.00019613,2]
[408069219,1773105039600,-150.0,0.00019613,2]
[408069220,1773105039611,-346.0,0.00019613,2]
[408069221,1773105039621,-534.0,0.00019613,2]
[408069222,1773105039631,-150.0,0.00019613,2]
[408069223,1773105039640,-250.0,0.00019667,2]
[408069224,1773105039651,-500.0,0.00019667,2]
[408069225,1773105039661,-250.0,0.00019667,2]
[408069226,1773105039672,-534.0,0.00019667,2]
[408069227,1773105039684,-259.80865041,0.00019667,2]
[408069228,1773105039698,-168.0,0.00019682,2]
[408069229,1773105039708,-168.0,0.00019687,2]
[408069230,1773105039719,-172.87392778,0.00019687,2]
[408069231,1773105039730,-316.9,0.000197,2]
[408069232,1773105039740,-7049.5981,0.000197,2]
[408069233,1773105039749,-1000.0,0.000197,2]
[408069234,1773105039758,-1100.0,0.000197,7]
[408069235,1773105039769,-1172.94062482,0.00019701,2]
[408069236,1773105039779,-250.0,0.00019722,2]
[408069237,1773105039790,-150.0,0.00019722,2]
[408069238,1773105039801,-225.29398025,0.00019722,2]
[408069239,1773105039811,-288.82005991,0.00019722,2]
[408069240,1773105039820,-534.0,0.00019722,2]
[408069241,1773105039830,-168.0,0.00019722,2]
[408069242,1773105039841,-787.0,0.00019726,2]
[408069243,1773105039852,-1000.0,0.00019726,2]
[408069244,1773105039862,-166.66,0.00019735,2]
[408069245,1773105039872,-11347.69688987,0.00019745,2]
[408069246,1773105039882,-186.65,0.00019751,2]
[408069247,1773105039894,-150.0,0.00019757,2]
[408069248,1773105039905,-250.0,0.00019767,2]
[408069249,1773105039914,-7945.3346563,0.00019767,2]
[408069250,1773105039923,-168.03,0.00019769,2]
[408069251,1773105039934,-2733.021,0.0001977,2]
[408069252,1773105039943,-150.0,0.00019777,2]
[408069253,1773105039952,-534.0,0.00019777,2]
[408069254,1773105039962,-445.4,0.00019781,2]
[408069255,1773105039971,-150.0,0.00019785,2]
[408069256,1773105039981,-250.0,0.00019789,2]
[408069257,1773105039990,-1712.1509231,0.00019797,2]
[408069258,1773105040000,-39762.7398851,0.00019797,2]
[408069259,1773105040009,-500.0,0.00019799,2]
[408069260,1773105040018,-500.0,0.00019799,2]
[408069261,1773105040027,-500.0,0.00019799,2]
[408069262,1773105040037,-500.0,0.00019799,2]
[408069263,1773105040047,-500.0,0.00019799,2]
[408069264,1773105040057,-500.0,0.00019799,2]
[408069265,1773105040067,-500.0,0.00019799,2]
[408069266,1773105040076,-500.0,0.00019799,2]
[408069267,1773105040085,-370.69943514,0.00019799,2]
[408069268,1773105040094,-500.0,0.00019799,2]
[408069269,1773105040104,-500.0,0.00019799,2]
[408069270,1773105040113,-150.0,0.00019799,2]
[408069271,1773105040122,-500.0,0.00019799,2]
[408069272,1773105040132,-500.0,0.00019799,2]
[408069273,1773105040141,-296.92362366,0.00019799,2]
[408069274,1773105040151,-500.0,0.00019799,2]
[408069275,1773105040160,-500.0,0.00019799,2]
[408069276,1773105040170,-500.0,0.00019799,2]
[408069277,1773105040180,-500.0,0.00019799,2]
[408069278,1773105040189,-500.0,0.00019799,3]
[408069279,1773105040199,-500.0,0.00019799,4]
[408069280,1773105040208,-500.0,0.00019799,5]
[408069281,1773105040218,-500.0,0.00019799,6]
[408069282,1773105040227,-500.0,0.00019799,7]
[408069283,1773105040236,-500.0,0.00019799,8]
[408069284,1773105040246,-500.0,0.00019799,2]
[408069285,1773105040255,-500.0,0.00019799,2]
[408069286,1773105040265,-157.0,0.000198,3]
[408069287,1773105040274,-400.0,0.000198,3]
[408069288,1773105040284,-200.0,0.000198,2]
[408069289,1773105040293,-150.0,0.000198,30]
[408069290,1773105040303,-200.0,0.000198,2]
[408069291,1773105040312,-5000.0,0.000198,2]
[408069292,1773105040321,-200.0,0.000198,2]
[408069293,1773105040330,-500.0,0.000198,2]
[408069294,1773105040340,-1066.46518922,0.000198,2]
[408069295,1773105040349,-159.01721726,0.000198,2]
[408069296,1773105040358,-1100.0,0.000198,7]
[408069297,1773105040367,-251.99708,0.000198,2]
[408069298,1773105040376,-251.99709,0.000198,2]
[408069299,1773105040386,-2000.0,0.000198,2]
[408069300,1773105040395,-2000.0,0.000198,2]
[408069301,1773105040404,-250.0,0.000198,2]
[408069302,1773105040413,-406.46011287,0.000198,2]
[408069303,1773105040422,-3838.44,0.000198,2]
[408069304,1773105040431,-250.0,0.0001982,2]
[408069305,1773105040442,-1000.0,0.00019824,2]
[408069306,1773105040451,-2174.98,0.00019831,2]
[408069307,1773105040460,-150.0,0.00019832,2]
[408069308,1773105040469,-534.0,0.00019832,2]
[408069309,1773105040478,-150.0,0.00019861,2]
[408069310,1773105040487,-150.0,0.00019886,2]
[408069311,1773105040496,-534.0,0.00019887,2]
[408069312,1773105040505,-150.0,0.00019888,2]
[408069313,1773105040515,-250.0,0.00019891,2]
[408069314,1773105040524,-1000.0,0.00019894,2]
[408069315,1773105040534,-150.0,0.00019898,2]
[408069316,1773105040543,-1043.0,0.00019899,2]
[408069317,1773105040552,-879.0,0.00019899,2]
[408069318,1773105040561,-25000.0,0.000199,3]
[408069319,1773105040570,-5634.22592151,0.000199,2]
[408069320,1773105040580,-1968.58082473,0.000199,3]
[408069321,1773105040589,-215.03088498,0.000199,2]
[408069322,1773105040598,-2064.64565711,0.000199,3]
[408069323,1773105040607,-3834.5229,0.000199,2]
[408069324,1773105040616,-3315.22726745,0.000199,2]
[408069325,1773105040625,-10000.0,0.000199,2]
[408069326,1773105040635,-1160.50963348,0.000199,2]
[408069327,1773105040644,-1133.0,0.000199,7]
[408069328,1773105040653,-11347.69688987,0.000199,2]
[408069329,1773105040663,-1074.3336151,0.000199,2]
[408069330,1773105040672,-166.66,0.0001991,2]
[408069331,1773105040681,-1516.0,0.0001991,2]
[408069332,1773105040694,-1511.0,0.0001991,2]
[408069333,1773105040703,-160.0,0.0001991,2]
[408069334,1773105040713,-161.9823944,0.0001991,2]
[408069335,1773105040722,-189.93,0.00019926,2]
[408069336,1773105040731,-151.0,0.0001993,2]
[408069337,1773105040741,-264.04850966,0.00019941,2]
[408069338,1773105040751,-534.0,0.00019941,2]
[408069339,1773105040761,-150.0,0.00019942,2]
[408069340,1773105040770,-250.0,0.00019949,2]
[408069341,1773105040780,-1000.0,0.00019957,2]
[408069342,1773105040790,-150.0,0.00019958,2]
[408069343,1773105040800,-151.0,0.00019965,2]
[408069344,1773105040812,-250.0,0.00019968,2]
[408069345,1773105040821,-150.0,0.00019968,2]
[408069346,1773105040832,-200.0,0.00019968,2]
[408069347,1773105040842,-150.0,0.00019968,2]
[408069348,1773105040853,-150.0,0.00019968,2]
[408069349,1773105040862,-150.0,0.00019968,2]
[408069350,1773105040872,-150.0,0.00019968,2]
[408069355,1773105040883,-150.0,0.00019968,2]
[408069356,1773105041129,-150.0,0.00019968,2]
[408069357,1773105041138,-150.0,0.00019968,2]
[408069358,1773105041148,-3505.0,0.00019968,2]
[408069359,1773105041157,-1342.0,0.00019968,2]
[408069360,1773105041167,-619.0,0.00019968,2]
[408069361,1773105041176,-1042.0,0.00019968,2]
[408069362,1773105041185,-1279.0,0.00019968,2]
[408069363,1773105041195,-400.0,0.0001997,2]
[408069364,1773105041205,-400.0,0.0001997,2]
[408069365,1773105041214,-400.0,0.0001997,2]
[408069366,1773105041224,-400.0,0.0001997,2]
[408069367,1773105041233,-402.18256312,0.0001997,2]
[408069368,1773105041243,-500.0,0.00019971,9]
[408069369,1773105041252,-500.0,0.00019972,2]
[408069370,1773105041262,-500.0,0.00019972,2]
[408069371,1773105041271,-500.0,0.00019972,2]
[408069372,1773105041280,-500.0,0.00019972,2]
[408069373,1773105041290,-500.0,0.00019972,2]
[408069374,1773105041299,-500.0,0.00019972,2]
[408069375,1773105041308,-500.0,0.00019972,2]
[408069376,1773105041318,-500.0,0.00019972,2]
[408069377,1773105041327,-500.0,0.00019972,2]
[408069378,1773105041336,-500.0,0.00019972,2]
[408069379,1773105041346,-500.0,0.00019972,2]
[408069380,1773105041355,-500.0,0.00019972,2]
[408069381,1773105041365,-500.0,0.00019972,2]
[408069382,1773105041374,-500.0,0.00019972,2]
[408069383,1773105041383,-500.0,0.00019972,2]
[408069384,1773105041392,-500.0,0.00019972,2]
[408069385,1773105041401,-500.0,0.00019972,2]
[408069386,1773105041411,-500.0,0.00019972,2]
[408069387,1773105041420,-500.0,0.00019972,2]
[408069388,1773105041429,-500.0,0.00019972,2]
[408069389,1773105041438,-500.0,0.00019972,2]
[408069390,1773105041448,-500.0,0.00019972,2]
[408069391,1773105041458,-263.81956629,0.00019972,2]
[408069392,1773105041467,-520.20395921,0.00019972,2]
[408069393,1773105041476,-301.24414202,0.00019972,2]
[408069394,1773105041486,-500.0,0.00019972,2]
[408069395,1773105041495,-500.0,0.00019972,2]
[408069396,1773105041504,-500.0,0.00019972,2]
[408069397,1773105041514,-500.0,0.00019972,2]
[408069398,1773105041523,-500.0,0.00019972,2]
[408069399,1773105041532,-500.0,0.00019972,2]
[408069400,1773105041541,-500.0,0.00019972,2]
[408069401,1773105041551,-500.0,0.00019972,2]
[408069402,1773105041561,-500.0,0.00019972,2]
[408069403,1773105041570,-500.0,0.00019972,2]
[408069404,1773105041579,-500.0,0.00019972,2]
[408069405,1773105041588,-500.0,0.00019972,2]
[408069406,1773105041598,-500.0,0.00019972,2]
[408069407,1773105041607,-500.0,0.00019972,2]
[408069408,1773105041616,-500.0,0.00019972,2]
[408069409,1773105041625,-593.98071474,0.00019972,2]
[408069410,1773105041635,-500.0,0.00019972,2]
[408069411,1773105041644,-500.86669167,0.00019972,2]
[408069412,1773105041653,-500.0,0.00019972,2]
[408069413,1773105041663,-450.77276533,0.00019972,2]
[408069414,1773105041672,-500.0,0.00019972,2]
[408069415,1773105041682,-500.0,0.00019972,2]
[408069416,1773105041696,-500.0,0.00019972,2]
[408069417,1773105041706,-500.0,0.00019972,2]
[408069418,1773105041715,-500.0,0.00019972,2]
[408069419,1773105041724,-500.0,0.00019972,2]
[408069420,1773105041735,-500.0,0.00019972,2]
[408069421,1773105041744,-500.0,0.00019972,2]
[408069422,1773105041755,-500.0,0.00019972,2]
[408069423,1773105041764,-200.51830949,0.00019972,2]
[408069424,1773105041774,-500.0,0.00019972,2]
[408069425,1773105041783,-500.0,0.00019972,2]
[408069426,1773105041792,-500.0,0.00019972,2]
[408069427,1773105041804,-500.0,0.00019972,2]
[408069428,1773105041813,-500.0,0.00019972,2]
[408069429,1773105041822,-500.0,0.00019972,2]
[408069430,1773105041832,-500.0,0.00019972,2]
[408069431,1773105041841,-500.0,0.00019972,2]
[408069432,1773105041850,-500.0,0.00019972,2]
[408069433,1773105041859,-500.0,0.00019972,2]
[408069434,1773105041869,-500.0,0.00019972,2]
[408069435,1773105041878,-500.0,0.00019972,2]
[408069436,1773105041887,-2892.0,0.00019973,2]
[408069437,1773105041896,-549.0,0.00019973,2]
[408069438,1773105041906,-500.0,0.00019973,2]
[408069439,1773105041915,-706.0,0.00019982,2]
[408069440,1773105041924,-150.0,0.00019982,2]
[408069441,1773105041933,-255.0,0.00019982,2]
[408069442,1773105041943,-700.0,0.0001999,2]
[408069443,1773105041952,-194.53489522,0.0001999,2]
[408069444,1773105041962,-500.0,0.00019991,2]
[408069445,1773105041971,-500.0,0.00019991,2]
[408069446,1773105041980,-500.0,0.00019991,2]
[408069447,1773105041989,-711.0,0.00019991,2]
[408069448,1773105041999,-150.0,0.00019991,2]
[408069449,1773105042008,-260.0,0.00019991,2]
[408069450,1773105042018,-15047.6442311,0.00019992,2]
[408069451,1773105042028,-2262.30217499,0.00019992,2]
[408069452,1773105042037,-534.0,0.00019996,2]
[408069453,1773105042047,-151.0,0.00019997,2]
[408069454,1773105042057,-200.0,0.00019998,2]
[408069455,1773105042070,-500.0,0.00019998,2]
[408069456,1773105042080,-500.0,0.00019999,2]
[408069457,1773105042090,-500.0,0.00019999,2]
[408069458,1773105042100,-500.0,0.00019999,2]
[408069459,1773105042110,-500.0,0.00019999,2]
[408069460,1773105042119,-500.0,0.00019999,2]
[408069461,1773105042129,-483.75794643,0.00019999,2]
[408069462,1773105042138,-155.0,0.00019999,2]
[408069463,1773105042147,-500.0,0.00019999,2]
[408069464,1773105042158,-500.0,0.00019999,2]
[408069465,1773105042168,-500.0,0.00019999,2]
[408069466,1773105042177,-500.0,0.00019999,2]
[408069467,1773105042187,-500.0,0.00019999,2]
[408069468,1773105042196,-500.0,0.00019999,2]
[408069469,1773105042206,-500.0,0.00019999,2]
[408069470,1773105042216,-500.0,0.00019999,2]
[408069471,1773105042225,-500.0,0.00019999,2]
[408069472,1773105042235,-500.0,0.00019999,2]
[408069473,1773105042245,-500.0,0.00019999,2]
[408069474,1773105042254,-500.0,0.00019999,2]
[408069475,1773105042264,-500.0,0.00019999,2]
[408069476,1773105042273,-500.0,0.00019999,2]
[408069477,1773105042283,-420.70437039,0.00019999,2]
[408069478,1773105042292,-500.0,0.00019999,2]
[408069479,1773105042302,-627.03588659,0.00019999,2]
[408069480,1773105042311,-350.0,0.00019999,2]
[408069481,1773105042321,-150.0,0.00019999,2]
[408069482,1773105042330,-500.0,0.00019999,10]
[408069483,1773105042339,-500.0,0.00019999,11]
[408069484,1773105042349,-500.0,0.00019999,12]
[408069485,1773105042359,-500.0,0.00019999,13]
[408069486,1773105042369,-580.67297566,0.00019999,14]
[408069487,1773105042378,-266.08,0.00019999,2]
[408069488,1773105042388,-500.0,0.00019999,2]
[408069489,1773105042398,-252.59,0.00019999,2]
[408069490,1773105042407,-435.7752732,0.00019999,2]
[408069491,1773105042416,-206.32654063,0.00019999,2]
[408069492,1773105042426,-500.0,0.00019999,2]
[408069493,1773105042435,-388.53521625,0.00019999,2]
[408069494,1773105042446,-836.0,0.0002,2]
[408069495,1773105042456,-787.0,0.0002,2]
[408069496,1773105042466,-6851.09933449,0.0002,2]
[408069509,1773105043364,-402268.82938876,0.0002,2]
[408069510,1773105043379,-225574.3304,0.0002,2]
[408069511,1773105043414,-500.0,0.00019613,2]
[408069512,1773105043423,-777.53759789,0.0002,2]
[408069513,1773105043437,-1605.0,0.0002,2]
[408069520,1773105043598,-335.38,0.00019468,2]
[408069521,1773105043610,-78.62,0.00019468,2]
[408069522,1773105043620,-500.0,0.00019667,2]
[408069523,1773105043630,-500.0,0.00019722,2]
[408069524,1773105043640,-141949.24613035,0.0002,2]
[408069525,1773105043675,-725.5,0.0002,2]
[408069526,1773105043694,-8816.38087587,0.0002,2]
[408069527,1773105043706,-8947.21879473,0.0002,2]
[408069528,1773105043718,-8943.78386462,0.0002,2]
[408069529,1773105043734,-9077.54866152,0.0002,2]
[408069530,1773105043844,-1172.94062482,0.000199,2]
[408069531,1773105043853,-3708.82164898,0.000199,2]
[408069532,1773105043863,-159.01721726,0.00019972,2]
[408069533,1773105043873,-533.23259461,0.00019972,2]
[408069534,1773105043882,-5928.06628145,0.0002,2]
[408069535,1773105043894,-80755.21052142,0.0002,2]
[408069536,1773105046083,-1259.5,0.0002,2]
[408069537,1773105046197,-24770.07,0.0002,2]
[408069538,1773105046311,-10110.95660428,0.0002,2]
[408069590,1773105181503,123.51,0.00015,2]
[408069591,1773105227511,294.0,0.00014252,2]
[408069592,1773105264360,380.0,0.00014252,2]
[408069593,1773105305201,155.0,0.00014252,2]
[408069594,1773105307191,160.0,0.00014252,2]
[408069595,1773105371198,155.0,0.00014252,2]
[408069596,1773105372794,157.0,0.00014252,2]
[408069597,1773105427256,155.0,0.00014252,2]
[408069598,1773105580073,245.78442387,0.00014188,2]
[408069599,1773105605784,161.0,0.00014252,2]
[408069601,1773105783348,500.0,0.0001425,2]
[408069602,1773105851427,500.0,0.00014252,2]
[408069603,1773105881974,1000.0,0.00014252,2]
[408069605,1773106002360,999.9,0.00014252,2]
[408069606,1773106015112,-433.3656522,0.00015,30]
[408069607,1773106015159,-500.0,0.00015,30]
[408069608,1773106015179,-501.06944,0.00015,30]
[408069609,1773106015199,-1479.04832423,0.0001519,2]
[408069610,1773106015218,-276.0,0.0001519,2]
[408069611,1773106015237,-1200.0,0.00015998,2]
[408069612,1773106015256,-264.0,0.00015999,2]
[408069613,1773106015275,-277.11945736,0.00016,5]
[408069614,1773106098331,-790.43787003,0.00016363,2]
[408069615,1773106098352,-380.0,0.00016712,2]
[408069616,1773106098372,-166.56,0.00016712,2]
[408069617,1773106143795,-2910.38990473,0.00016907,2]
[408069618,1773106143816,-1006.0,0.00016954,2]
[408069619,1773106150015,1170.0,0.0002,120]
[408069620,1773106170723,-1494.0,0.00016954,2]
[408069621,1773106170746,-503.0,0.00017,2]
[408069622,1773106170766,-503.0,0.00017,2]
[408069625,1773106231635,-175.0,0.00016,2]
[408069626,1773106231646,-1200.0,0.00017127,2]